[Event "Titled Tuesday Blitz October 11 Late 2022"]
[White "Rustemov, Alexander"]
[Black "Zierk, Steven"]
[WhiteFideId "4119002"]
[BlackFideId "2034255"]
[WhiteElo "2871"]
[BlackElo "2494"]
[Result "0-1"]
[Round "11"]
[TimeControl "180+1"]
[Date "2022.10.11"]
[WhiteClock "0:00:02"]
[BlackClock "0:00:04"]

1. d4 {[%clk 0:03:00]}  d5 {[%clk 0:03:00]} 2. c4 {[%clk 0:03:00]}  c6 {[%clk 0:03:00]} 3. Nc3 {[%clk 0:03:00]}  Nf6 {[%clk 0:03:00]} 4. e3 {[%clk 0:03:00]}  e6 {[%clk 0:03:00]} 5. Nf3 {[%clk 0:02:59]}  Nbd7 {[%clk 0:03:00]} 6. Qc2 {[%clk 0:02:59]}  Bd6 {[%clk 0:03:00]} 7. b3 {[%clk 0:02:59]}  O-O {[%clk 0:02:57]} 8. Be2 {[%clk 0:03:00]}  dxc4 {[%clk 0:02:52]} 9. bxc4 {[%clk 0:02:59]}  e5 {[%clk 0:02:53]} 10. O-O {[%clk 0:02:59]}  Re8 {[%clk 0:02:49]} 11. Rd1 {[%clk 0:02:59]}  e4 {[%clk 0:02:47]} 12. Nd2 {[%clk 0:02:58]}  Qe7 {[%clk 0:02:48]} 13. a4 {[%clk 0:02:52]}  a5 {[%clk 0:02:44]} 14. Qb3 {[%clk 0:02:50]}  b6 {[%clk 0:02:41]} 15. Ba3 {[%clk 0:02:50]}  Bb4 {[%clk 0:02:39]} 16. Nf1 {[%clk 0:02:34]}  Ba6 {[%clk 0:02:34]} 17. Rdb1 {[%clk 0:02:23]}  c5 {[%clk 0:02:29]} 18. Nb5 {[%clk 0:02:12]}  Bxb5 {[%clk 0:02:25]} 19. axb5 {[%clk 0:02:08]}  h5 {[%clk 0:02:16]} 20. Bb2 {[%clk 0:02:06]}  h4 {[%clk 0:02:14]} 21. h3 {[%clk 0:02:06]}  Qe6 {[%clk 0:02:10]} 22. Rd1 {[%clk 0:02:05]}  Qf5 {[%clk 0:02:06]} 23. Qc2 {[%clk 0:02:01]}  Nf8 {[%clk 0:01:57]} 24. Nh2 {[%clk 0:02:00]}  Ne6 {[%clk 0:01:48]} 25. Ng4 {[%clk 0:01:59]}  Nxg4 {[%clk 0:01:44]} 26. Bxg4 {[%clk 0:01:57]}  Qg6 {[%clk 0:01:44]} 27. Bxe6 {[%clk 0:01:27]}  Rxe6 {[%clk 0:01:37]} 28. dxc5 {[%clk 0:01:22]}  Bxc5 {[%clk 0:01:33]} 29. Bd4 {[%clk 0:01:21]}  Rc8 {[%clk 0:01:31]} 30. Qe2 {[%clk 0:01:14]}  Rd6 {[%clk 0:01:26]} 31. Bxc5 {[%clk 0:01:10]}  Rxc5 {[%clk 0:01:25]} 32. Rxd6 {[%clk 0:01:08]}  Qxd6 {[%clk 0:01:24]} 33. Rd1 {[%clk 0:01:09]}  Qe6 {[%clk 0:01:19]} 34. Rd4 {[%clk 0:01:00]}  Rg5 {[%clk 0:01:12]} 35. Kh1 {[%clk 0:00:59]}  Qg6 {[%clk 0:01:08]} 36. Qf1 {[%clk 0:00:57]}  Kh7 {[%clk 0:01:05]} 37. Qb1 {[%clk 0:00:50]}  Rxg2 {[%clk 0:01:01]} 38. Qxe4 {[%clk 0:00:49]}  Qxe4 {[%clk 0:00:58]} 39. Rxe4 {[%clk 0:00:49]}  Rxf2 {[%clk 0:00:58]} 40. Rxh4+ {[%clk 0:00:49]}  Kg6 {[%clk 0:00:55]} 41. c5 {[%clk 0:00:47]}  bxc5 {[%clk 0:00:51]} 42. Rc4 {[%clk 0:00:47]}  Rb2 {[%clk 0:00:48]} 43. Rxc5 {[%clk 0:00:46]}  a4 {[%clk 0:00:41]} 44. Rc6+ {[%clk 0:00:46]}  f6 {[%clk 0:00:41]} 45. Ra6 {[%clk 0:00:47]}  Rb4 {[%clk 0:00:39]} 46. Kg2 {[%clk 0:00:41]}  Kg5 {[%clk 0:00:36]} 47. Kg3 {[%clk 0:00:41]}  Kf5 {[%clk 0:00:34]} 48. b6 {[%clk 0:00:38]}  Ke4 {[%clk 0:00:30]} 49. b7 {[%clk 0:00:23]}  Rxb7 {[%clk 0:00:24]} 50. Rxa4+ {[%clk 0:00:22]}  Kxe3 {[%clk 0:00:24]} 51. h4 {[%clk 0:00:20]}  Rb1 {[%clk 0:00:20]} 52. Kg2 {[%clk 0:00:17]}  Rb2+ {[%clk 0:00:17]} 53. Kg3 {[%clk 0:00:16]}  Rb3 {[%clk 0:00:16]} 54. Ra7 {[%clk 0:00:16]}  Ke4+ {[%clk 0:00:15]} 55. Kg4 {[%clk 0:00:16]}  f5+ {[%clk 0:00:11]} 56. Kh5 {[%clk 0:00:16]}  Rg3 {[%clk 0:00:11]} 57. Re7+ {[%clk 0:00:12]}  Kd3 {[%clk 0:00:11]} 58. Rf7 {[%clk 0:00:12]}  g6+ {[%clk 0:00:10]} 59. Kh6 {[%clk 0:00:11]}  Ke3 {[%clk 0:00:11]} 60. h5 {[%clk 0:00:12]}  gxh5 {[%clk 0:00:09]} 61. Kxh5 {[%clk 0:00:08]}  f4 {[%clk 0:00:08]} 62. Kh4 {[%clk 0:00:08]}  Rg8 {[%clk 0:00:08]} 63. Kh3 {[%clk 0:00:08]}  f3 {[%clk 0:00:07]} 64. Re7+ {[%clk 0:00:05]}  Kd3 {[%clk 0:00:05]} 65. Rf7 {[%clk 0:00:04]}  Ke2 {[%clk 0:00:05]} 66. Re7+ {[%clk 0:00:04]}  Kf1 {[%clk 0:00:05]} 67. Rf7 {[%clk 0:00:05]}  f2 {[%clk 0:00:03]} 68. Kh2 {[%clk 0:00:05]}  Rh8+ {[%clk 0:00:03]} 69. Kg3 {[%clk 0:00:05]}  Kg1 {[%clk 0:00:04]} 70. Rxf2 {[%clk 0:00:01]}  Rg8+ {[%clk 0:00:04]} 71. Kf3 {[%clk 0:00:01]}  Rf8+ {[%clk 0:00:04]} 72. Ke3 {[%clk 0:00:02]}  Rxf2 {[%clk 0:00:04]} 0-1


[Site "https://www.chess.com"]

[Event "Titled Tuesday Blitz October 11 Late 2022"]
[White "Sabar, Ethmane Daouda"]
[Black "Rodriguez Santiago, Jaime"]
[WhiteFideId "19600097"]
[BlackFideId "3100898"]
[WhiteElo "1950"]
[BlackElo "2025"]
[Result "0-1"]
[Round "11"]
[TimeControl "180+1"]
[Date "2022.10.12"]
[WhiteClock "0:00:44"]
[BlackClock "0:01:58"]

1. Nf3 {[%clk 0:02:59]}  g6 {[%clk 0:02:58]} 2. g3 {[%clk 0:03:00]}  Bg7 {[%clk 0:02:58]} 3. Bg2 {[%clk 0:02:59]}  e5 {[%clk 0:02:59]} 4. O-O {[%clk 0:03:00]}  f5 {[%clk 0:02:59]} 5. d3 {[%clk 0:03:00]}  d6 {[%clk 0:02:59]} 6. Nbd2 {[%clk 0:03:01]}  Nf6 {[%clk 0:03:00]} 7. e4 {[%clk 0:03:01]}  O-O {[%clk 0:03:00]} 8. c3 {[%clk 0:03:00]}  f4 {[%clk 0:03:00]} 9. h3 {[%clk 0:02:57]}  Nc6 {[%clk 0:02:59]} 10. g4 {[%clk 0:02:57]}  h5 {[%clk 0:02:58]} 11. g5 {[%clk 0:02:56]}  Nh7 {[%clk 0:02:58]} 12. h4 {[%clk 0:02:56]}  Be6 {[%clk 0:02:57]} 13. b4 {[%clk 0:02:56]}  Bg4 {[%clk 0:02:57]} 14. Qb3+ {[%clk 0:02:55]}  Kh8 {[%clk 0:02:57]} 15. a4 {[%clk 0:02:54]}  Qd7 {[%clk 0:02:55]} 16. Re1 {[%clk 0:02:48]}  Bh3 {[%clk 0:02:54]} 17. Nh2 {[%clk 0:02:43]}  Bxg2 {[%clk 0:02:52]} 18. Kxg2 {[%clk 0:02:43]}  f3+ {[%clk 0:02:50]} 19. Ndxf3 {[%clk 0:02:41]}  Nd8 {[%clk 0:02:45]} 20. Re3 {[%clk 0:02:32]}  Ne6 {[%clk 0:02:44]} 21. Kf1 {[%clk 0:02:09]}  Nf4 {[%clk 0:02:40]} 22. Ng1 {[%clk 0:02:08]}  Rf7 {[%clk 0:02:37]} 23. Rg3 {[%clk 0:02:06]}  Raf8 {[%clk 0:02:36]} 24. c4 {[%clk 0:01:56]}  Ne6 {[%clk 0:02:26]} 25. Be3 {[%clk 0:01:55]}  Nd4 {[%clk 0:02:25]} 26. Bxd4 {[%clk 0:01:49]}  exd4 {[%clk 0:02:26]} 27. Qb2 {[%clk 0:01:49]}  Be5 {[%clk 0:02:26]} 28. Rg2 {[%clk 0:01:39]}  Rf4 {[%clk 0:02:17]} 29. Nhf3 {[%clk 0:01:20]}  Rxf3 {[%clk 0:02:13]} 30. Nxf3 {[%clk 0:01:21]}  Rxf3 {[%clk 0:02:13]} 31. Ke2 {[%clk 0:01:14]}  Qh3 {[%clk 0:02:08]} 32. Rag1 {[%clk 0:01:13]}  Rxd3 {[%clk 0:02:03]} 33. Qb1 {[%clk 0:00:44]}  Qf3+ {[%clk 0:01:58]} 34. Ke1 {[%clk 0:00:44]}  Qxe4+ {[%clk 0:01:58]} 0-1


[Site "https://www.chess.com"]

[Event "Titled Tuesday Blitz October 11 Late 2022"]
[White "Salman, Pavel"]
[Black "Prydun, Andriy"]
[WhiteFideId "24153753"]
[BlackFideId "14145898"]
[WhiteElo "2187"]
[BlackElo "2163"]
[Result "1-0"]
[Round "11"]
[TimeControl "180+1"]
[Date "2022.10.12"]
[WhiteClock "0:01:25"]
[BlackClock "0:00:07"]

1. Nf3 {[%clk 0:02:59]}  Nf6 {[%clk 0:02:58]} 2. g3 {[%clk 0:02:59]}  d5 {[%clk 0:02:55]} 3. Bg2 {[%clk 0:02:59]}  a5 {[%clk 0:02:34]} 4. O-O {[%clk 0:02:59]}  a4 {[%clk 0:02:34]} 5. a3 {[%clk 0:02:58]}  Nc6 {[%clk 0:02:29]} 6. d3 {[%clk 0:02:57]}  e5 {[%clk 0:02:29]} 7. e4 {[%clk 0:02:58]}  dxe4 {[%clk 0:02:24]} 8. dxe4 {[%clk 0:02:59]}  Qxd1 {[%clk 0:02:24]} 9. Rxd1 {[%clk 0:02:59]}  Bg4 {[%clk 0:02:24]} 10. Nbd2 {[%clk 0:02:41]}  Bc5 {[%clk 0:02:18]} 11. h3 {[%clk 0:02:39]}  Be6 {[%clk 0:02:10]} 12. Ng5 {[%clk 0:02:35]}  Ke7 {[%clk 0:02:10]} 13. Nxe6 {[%clk 0:02:35]}  fxe6 {[%clk 0:02:10]} 14. Nc4 {[%clk 0:02:35]}  b5 {[%clk 0:02:00]} 15. Be3 {[%clk 0:02:35]}  Bd6 {[%clk 0:01:51]} 16. Nxd6 {[%clk 0:02:33]}  cxd6 {[%clk 0:01:52]} 17. c3 {[%clk 0:02:31]}  Na5 {[%clk 0:01:48]} 18. Bf1 {[%clk 0:02:10]}  Nc4 {[%clk 0:01:44]} 19. Bxc4 {[%clk 0:02:09]}  bxc4 {[%clk 0:01:43]} 20. f3 {[%clk 0:02:07]}  Ra5 {[%clk 0:01:25]} 21. Rd2 {[%clk 0:02:07]}  Rb5 {[%clk 0:01:25]} 22. Rad1 {[%clk 0:02:07]}  d5 {[%clk 0:01:24]} 23. Bg5 {[%clk 0:02:07]}  Kd6 {[%clk 0:01:18]} 24. Bxf6 {[%clk 0:01:54]}  gxf6 {[%clk 0:01:18]} 25. Kf2 {[%clk 0:01:51]}  Rhb8 {[%clk 0:01:15]} 26. exd5 {[%clk 0:01:51]}  exd5 {[%clk 0:01:04]} 27. Ke3 {[%clk 0:01:50]}  d4+ {[%clk 0:00:45]} 28. cxd4 {[%clk 0:01:50]}  Rb3+ {[%clk 0:00:46]} 29. Ke4 {[%clk 0:01:47]}  Ke6 {[%clk 0:00:33]} 30. dxe5 {[%clk 0:01:42]}  Rd3 {[%clk 0:00:09]} 31. Rxd3 {[%clk 0:01:33]}  cxd3 {[%clk 0:00:10]} 32. exf6 {[%clk 0:01:33]}  Rxb2 {[%clk 0:00:08]} 33. Rxd3 {[%clk 0:01:33]}  Kxf6 {[%clk 0:00:07]} 34. Rd6+ {[%clk 0:01:29]}  Kg5 {[%clk 0:00:07]} 35. h4+ {[%clk 0:01:25]} 1-0


[Site "https://www.chess.com"]

[Event "Titled Tuesday Blitz October 11 Late 2022"]
[White "Sanal, Vahap"]
[Black "Koziorowicz, Michal"]
[WhiteFideId "6300545"]
[BlackFideId "21809194"]
[WhiteElo "2574"]
[BlackElo "2220"]
[Result "1-0"]
[Round "11"]
[TimeControl "180+1"]
[Date "2022.10.11"]
[WhiteClock "0:01:56"]
[BlackClock "0:01:38"]

1. g3 {[%clk 0:03:00]}  d5 {[%clk 0:02:59]} 2. Bg2 {[%clk 0:03:01]}  c6 {[%clk 0:03:00]} 3. d3 {[%clk 0:03:00]}  Nf6 {[%clk 0:03:00]} 4. Nf3 {[%clk 0:03:00]}  g6 {[%clk 0:03:01]} 5. Bd2 {[%clk 0:02:58]}  Bg7 {[%clk 0:03:01]} 6. Qc1 {[%clk 0:02:59]}  h5 {[%clk 0:03:00]} 7. O-O {[%clk 0:02:52]}  Bg4 {[%clk 0:02:38]} 8. Re1 {[%clk 0:02:42]}  Qc8 {[%clk 0:02:35]} 9. e4 {[%clk 0:02:40]}  dxe4 {[%clk 0:02:34]} 10. dxe4 {[%clk 0:02:40]}  h4 {[%clk 0:02:26]} 11. Nxh4 {[%clk 0:02:34]}  Bh3 {[%clk 0:02:25]} 12. e5 {[%clk 0:02:32]}  Nd5 {[%clk 0:02:15]} 13. c4 {[%clk 0:02:32]}  Nb6 {[%clk 0:02:13]} 14. Bc3 {[%clk 0:02:06]}  Rxh4 {[%clk 0:02:12]} 15. gxh4 {[%clk 0:02:05]}  Qg4 {[%clk 0:02:12]} 16. Qg5 {[%clk 0:02:06]}  Nxc4 {[%clk 0:01:59]} 17. Qxg4 {[%clk 0:02:00]}  Bxg4 {[%clk 0:02:00]} 18. e6 {[%clk 0:02:00]}  f6 {[%clk 0:01:56]} 19. Re4 {[%clk 0:01:59]}  Nxb2 {[%clk 0:01:41]} 20. Rxg4 {[%clk 0:01:56]}  Nd1 {[%clk 0:01:41]} 21. Rxg6 {[%clk 0:01:56]}  Kf8 {[%clk 0:01:41]} 22. Bd4 {[%clk 0:01:54]}  Na6 {[%clk 0:01:39]} 23. Na3 {[%clk 0:01:54]}  c5 {[%clk 0:01:39]} 24. Rxd1 {[%clk 0:01:55]}  cxd4 {[%clk 0:01:38]} 25. Rxd4 {[%clk 0:01:56]} 1-0


[Site "https://www.chess.com"]

[Event "Titled Tuesday Blitz October 11 Late 2022"]
[White "Sanchez Alvares, Kelvin Antonio"]
[Black "Hemam, Moulaye Brahim"]
[WhiteFideId "3906680"]
[BlackFideId "19600054"]
[WhiteElo "2217"]
[BlackElo "2088"]
[Result "1-0"]
[Round "11"]
[TimeControl "180+1"]
[Date "2022.10.12"]
[WhiteClock "0:00:18"]
[BlackClock "0:00:37"]

1. e4 {[%clk 0:03:00]}  c5 {[%clk 0:02:55]} 2. Nf3 {[%clk 0:02:59]}  Nc6 {[%clk 0:02:55]} 3. d4 {[%clk 0:02:58]}  cxd4 {[%clk 0:02:56]} 4. Nxd4 {[%clk 0:02:56]}  Nf6 {[%clk 0:02:56]} 5. Nc3 {[%clk 0:02:55]}  e5 {[%clk 0:02:56]} 6. Ndb5 {[%clk 0:02:55]}  d6 {[%clk 0:02:56]} 7. Bg5 {[%clk 0:02:54]}  a6 {[%clk 0:02:56]} 8. Bxf6 {[%clk 0:02:52]}  gxf6 {[%clk 0:02:55]} 9. Na3 {[%clk 0:02:53]}  b5 {[%clk 0:02:55]} 10. Nd5 {[%clk 0:02:52]}  Bg7 {[%clk 0:02:52]} 11. Bd3 {[%clk 0:02:50]}  Ne7 {[%clk 0:02:48]} 12. Nxe7 {[%clk 0:02:47]}  Qxe7 {[%clk 0:02:47]} 13. Qf3 {[%clk 0:02:46]}  f5 {[%clk 0:02:41]} 14. O-O {[%clk 0:02:18]}  d5 {[%clk 0:02:35]} 15. exd5 {[%clk 0:02:01]}  e4 {[%clk 0:02:34]} 16. d6 {[%clk 0:01:57]}  exf3 {[%clk 0:02:25]} 17. dxe7 {[%clk 0:01:56]}  Bxb2 {[%clk 0:02:24]} 18. Nxb5 {[%clk 0:01:43]}  axb5 {[%clk 0:02:19]} 19. Rab1 {[%clk 0:01:29]}  fxg2 {[%clk 0:02:01]} 20. Bxb5+ {[%clk 0:01:15]}  Kxe7 {[%clk 0:01:49]} 21. Rfe1+ {[%clk 0:01:06]}  Be6 {[%clk 0:01:37]} 22. Rxb2 {[%clk 0:01:04]}  Kf6 {[%clk 0:01:30]} 23. a4 {[%clk 0:01:01]}  Bd5 {[%clk 0:01:25]} 24. c4 {[%clk 0:00:57]}  Bf3 {[%clk 0:01:21]} 25. Rb3 {[%clk 0:00:56]}  Be4 {[%clk 0:01:20]} 26. f3 {[%clk 0:00:45]}  Bc2 {[%clk 0:01:19]} 27. Rb4 {[%clk 0:00:44]}  Rhg8 {[%clk 0:01:14]} 28. Ra1 {[%clk 0:00:40]}  Bd3 {[%clk 0:01:08]} 29. Rb2 {[%clk 0:00:33]}  Bf1 {[%clk 0:01:06]} 30. Rc1 {[%clk 0:00:26]}  Rg5 {[%clk 0:01:02]} 31. c5 {[%clk 0:00:24]}  Ra5 {[%clk 0:00:49]} 32. c6 {[%clk 0:00:21]}  Rg8 {[%clk 0:00:44]} 33. c7 {[%clk 0:00:18]}  Bxb5 {[%clk 0:00:37]} 34. axb5 {[%clk 0:00:18]} 1-0


[Site "https://www.chess.com"]

[Event "Titled Tuesday Blitz October 11 Late 2022"]
[White "Sanchez, Robert"]
[Black "Clawitter, Craig"]
[WhiteFideId "2034360"]
[BlackFideId "2023105"]
[WhiteElo "2393"]
[BlackElo "2226"]
[Result "0-1"]
[Round "11"]
[TimeControl "180+1"]
[Date "2022.10.12"]
[WhiteClock "0:00:30"]
[BlackClock "0:00:09"]

1. e4 {[%clk 0:03:00]}  e6 {[%clk 0:02:59]} 2. d4 {[%clk 0:03:00]}  d5 {[%clk 0:03:00]} 3. Nd2 {[%clk 0:03:01]}  Be7 {[%clk 0:02:59]} 4. Ngf3 {[%clk 0:03:01]}  Nf6 {[%clk 0:02:59]} 5. e5 {[%clk 0:03:01]}  Nfd7 {[%clk 0:03:00]} 6. c3 {[%clk 0:03:02]}  c5 {[%clk 0:03:01]} 7. Bd3 {[%clk 0:03:02]}  Nc6 {[%clk 0:03:01]} 8. O-O {[%clk 0:03:01]}  a5 {[%clk 0:03:02]} 9. c4 {[%clk 0:03:01]}  dxc4 {[%clk 0:02:52]} 10. Bxc4 {[%clk 0:02:51]}  cxd4 {[%clk 0:02:50]} 11. Re1 {[%clk 0:02:49]}  Qc7 {[%clk 0:02:44]} 12. Qe2 {[%clk 0:02:48]}  O-O {[%clk 0:02:41]} 13. Bd3 {[%clk 0:02:48]}  Nc5 {[%clk 0:02:18]} 14. Bb1 {[%clk 0:02:43]}  b6 {[%clk 0:02:18]} 15. Ne4 {[%clk 0:02:34]}  Ba6 {[%clk 0:02:16]} 16. Qd1 {[%clk 0:02:21]}  Nxe5 {[%clk 0:01:46]} 17. Nxc5 {[%clk 0:02:05]}  Nxf3+ {[%clk 0:01:42]} 18. Qxf3 {[%clk 0:02:04]}  bxc5 {[%clk 0:01:36]} 19. Qe4 {[%clk 0:01:55]}  g6 {[%clk 0:01:21]} 20. Bh6 {[%clk 0:01:54]}  Rfd8 {[%clk 0:01:12]} 21. Qf3 {[%clk 0:01:36]}  d3 {[%clk 0:01:03]} 22. Rd1 {[%clk 0:01:33]}  c4 {[%clk 0:00:56]} 23. a4 {[%clk 0:01:31]}  Qb7 {[%clk 0:00:45]} 24. Qe3 {[%clk 0:01:23]}  Qxb2 {[%clk 0:00:42]} 25. Ba2 {[%clk 0:01:23]}  Bf6 {[%clk 0:00:33]} 26. h4 {[%clk 0:01:10]}  Qxa1 {[%clk 0:00:20]} 27. Rxa1 {[%clk 0:01:09]}  Bxa1 {[%clk 0:00:21]} 28. Qf3 {[%clk 0:00:56]}  Rac8 {[%clk 0:00:13]} 29. h5 {[%clk 0:00:32]}  d2 {[%clk 0:00:13]} 30. Bxd2 {[%clk 0:00:31]}  Rxd2 {[%clk 0:00:13]} 31. h6 {[%clk 0:00:32]}  c3 {[%clk 0:00:09]} 32. Qf6 {[%clk 0:00:31]}  c2 {[%clk 0:00:08]} 33. Qxa1 {[%clk 0:00:30]}  Rd1+ {[%clk 0:00:09]} 0-1


[Site "https://www.chess.com"]

[Event "Titled Tuesday Blitz October 11 Late 2022"]
[White "Sarana, Alexey"]
[Black "Urazayev, Arystanbek"]
[WhiteFideId "24133795"]
[BlackFideId "13709810"]
[WhiteElo "2689"]
[BlackElo "2441"]
[Result "0-1"]
[Round "11"]
[TimeControl "180+1"]
[Date "2022.10.11"]
[WhiteClock "0:00:05"]
[BlackClock "0:00:13"]

1. c4 {[%clk 0:03:00]}  e6 {[%clk 0:03:00]} 2. Nc3 {[%clk 0:03:00]}  d5 {[%clk 0:03:00]} 3. d4 {[%clk 0:02:59]}  Nf6 {[%clk 0:03:00]} 4. Nf3 {[%clk 0:02:58]}  Nbd7 {[%clk 0:02:55]} 5. Qc2 {[%clk 0:02:50]}  dxc4 {[%clk 0:02:46]} 6. e4 {[%clk 0:02:45]}  c5 {[%clk 0:02:46]} 7. dxc5 {[%clk 0:02:44]}  Bxc5 {[%clk 0:02:47]} 8. Bxc4 {[%clk 0:02:45]}  Qc7 {[%clk 0:02:43]} 9. O-O {[%clk 0:02:43]}  Bxf2+ {[%clk 0:02:42]} 10. Qxf2 {[%clk 0:02:44]}  Qxc4 {[%clk 0:02:42]} 11. e5 {[%clk 0:02:30]}  Ne4 {[%clk 0:02:10]} 12. Nxe4 {[%clk 0:02:20]}  Qxe4 {[%clk 0:02:11]} 13. Ng5 {[%clk 0:01:23]}  Qg6 {[%clk 0:02:09]} 14. Qxf7+ {[%clk 0:01:11]}  Qxf7 {[%clk 0:02:09]} 15. Rxf7 {[%clk 0:01:12]}  Nxe5 {[%clk 0:01:10]} 16. Rxg7 {[%clk 0:01:10]}  Bd7 {[%clk 0:01:06]} 17. Bf4 {[%clk 0:01:07]}  Nd3 {[%clk 0:01:07]} 18. Bd6 {[%clk 0:00:57]}  O-O-O {[%clk 0:00:53]} 19. Rd1 {[%clk 0:00:36]}  Rhg8 {[%clk 0:00:42]} 20. Rxg8 {[%clk 0:00:23]}  Rxg8 {[%clk 0:00:43]} 21. Nxh7 {[%clk 0:00:24]}  Nxb2 {[%clk 0:00:43]} 22. Rd4 {[%clk 0:00:21]}  Bc6 {[%clk 0:00:37]} 23. g3 {[%clk 0:00:22]}  Na4 {[%clk 0:00:30]} 24. Nf6 {[%clk 0:00:22]}  Rh8 {[%clk 0:00:20]} 25. h4 {[%clk 0:00:20]}  Nc3 {[%clk 0:00:21]} 26. Kf2 {[%clk 0:00:18]}  Rh6 {[%clk 0:00:20]} 27. Be5 {[%clk 0:00:14]}  Nd5 {[%clk 0:00:16]} 28. Nxd5 {[%clk 0:00:14]}  Bxd5 {[%clk 0:00:17]} 29. Rf4 {[%clk 0:00:09]}  Rh5 {[%clk 0:00:17]} 30. Rf8+ {[%clk 0:00:08]}  Kd7 {[%clk 0:00:17]} 31. Bf4 {[%clk 0:00:05]}  e5 {[%clk 0:00:16]} 32. Bg5 {[%clk 0:00:04]}  Bxa2 {[%clk 0:00:16]} 33. g4 {[%clk 0:00:04]}  Rh7 {[%clk 0:00:17]} 34. Kg3 {[%clk 0:00:04]}  a5 {[%clk 0:00:16]} 35. h5 {[%clk 0:00:04]}  a4 {[%clk 0:00:16]} 36. Ra8 {[%clk 0:00:05]}  Bb3 {[%clk 0:00:14]} 37. Bf6 {[%clk 0:00:05]}  Ke6 {[%clk 0:00:14]} 38. Bg5 {[%clk 0:00:02]}  b5 {[%clk 0:00:14]} 39. Bd2 {[%clk 0:00:02]}  Rd7 {[%clk 0:00:11]} 40. h6 {[%clk 0:00:03]}  Bc2 {[%clk 0:00:08]} 41. Bc3 {[%clk 0:00:03]}  Rd3+ {[%clk 0:00:07]} 42. Kh4 {[%clk 0:00:03]}  Rxc3 {[%clk 0:00:08]} 43. Ra6+ {[%clk 0:00:03]}  Kd5 {[%clk 0:00:08]} 44. g5 {[%clk 0:00:04]}  Rc4+ {[%clk 0:00:05]} 45. Kh5 {[%clk 0:00:04]}  Rc3 {[%clk 0:00:05]} 46. g6 {[%clk 0:00:03]}  Rh3+ {[%clk 0:00:05]} 47. Kg4 {[%clk 0:00:03]}  Rxh6 {[%clk 0:00:03]} 48. g7 {[%clk 0:00:04]}  Rxa6 {[%clk 0:00:01]} 49. g8=Q+ {[%clk 0:00:04]}  Kc5 {[%clk 0:00:02]} 50. Qc8+ {[%clk 0:00:04]}  Rc6 {[%clk 0:00:03]} 51. Qf8+ {[%clk 0:00:04]}  Kc4 {[%clk 0:00:03]} 52. Qe8 {[%clk 0:00:04]}  Rc5 {[%clk 0:00:03]} 53. Qe6+ {[%clk 0:00:04]}  Kb4 {[%clk 0:00:04]} 54. Kf3 {[%clk 0:00:04]}  a3 {[%clk 0:00:04]} 55. Qa6 {[%clk 0:00:03]}  Ba4 {[%clk 0:00:05]} 56. Qe6 {[%clk 0:00:03]}  Bb3 {[%clk 0:00:05]} 57. Qg4+ {[%clk 0:00:02]}  Rc4 {[%clk 0:00:05]} 58. Qd7 {[%clk 0:00:02]}  a2 {[%clk 0:00:06]} 59. Qd6+ {[%clk 0:00:02]}  Kc3 {[%clk 0:00:06]} 60. Qxe5+ {[%clk 0:00:02]}  Kc2 {[%clk 0:00:06]} 61. Qe2+ {[%clk 0:00:02]}  Kb1 {[%clk 0:00:06]} 62. Qd3+ {[%clk 0:00:03]}  Kb2 {[%clk 0:00:06]} 63. Qd2+ {[%clk 0:00:03]}  Rc2 {[%clk 0:00:07]} 64. Qd4+ {[%clk 0:00:02]}  Rc3+ {[%clk 0:00:07]} 65. Ke4 {[%clk 0:00:01]}  a1=Q {[%clk 0:00:08]} 66. Ke5 {[%clk 0:00:02]}  Qb1 {[%clk 0:00:09]} 67. Kd6 {[%clk 0:00:03]}  Qd3 {[%clk 0:00:09]} 68. Ke7 {[%clk 0:00:03]}  Qxd4 {[%clk 0:00:10]} 69. Ke8 {[%clk 0:00:04]}  Re3+ {[%clk 0:00:10]} 70. Kf8 {[%clk 0:00:04]}  Qf4+ {[%clk 0:00:11]} 71. Kg7 {[%clk 0:00:04]}  Rg3+ {[%clk 0:00:12]} 72. Kh8 {[%clk 0:00:05]}  Qh4# {[%clk 0:00:13]} 0-1


[Site "https://www.chess.com"]

[Event "Titled Tuesday Blitz October 11 Late 2022"]
[White "Simonovic, Miroslav"]
[Black "Vargas, Mauricio"]
[WhiteFideId "919152"]
[BlackFideId "4404572"]
[WhiteElo "2043"]
[BlackElo "2025"]
[Result "1-0"]
[Round "11"]
[TimeControl "180+1"]
[Date "2022.10.12"]
[WhiteClock "0:00:13"]
[BlackClock "0:00:04"]

1. d4 {[%clk 0:03:00]}  d5 {[%clk 0:02:59]} 2. Bg5 {[%clk 0:03:01]}  h5 {[%clk 0:02:57]} 3. h4 {[%clk 0:02:56]}  Nf6 {[%clk 0:02:47]} 4. Bxf6 {[%clk 0:02:56]}  exf6 {[%clk 0:02:44]} 5. e3 {[%clk 0:02:56]}  Bd6 {[%clk 0:02:44]} 6. a3 {[%clk 0:02:55]}  Bg4 {[%clk 0:02:41]} 7. Be2 {[%clk 0:02:55]}  Bxe2 {[%clk 0:02:33]} 8. Nxe2 {[%clk 0:02:56]}  Nd7 {[%clk 0:02:31]} 9. c4 {[%clk 0:02:54]}  dxc4 {[%clk 0:02:30]} 10. Qc2 {[%clk 0:02:46]}  b5 {[%clk 0:02:25]} 11. Qe4+ {[%clk 0:02:42]}  Be7 {[%clk 0:02:17]} 12. a4 {[%clk 0:02:34]}  b4 {[%clk 0:02:13]} 13. Nd2 {[%clk 0:02:30]}  c3 {[%clk 0:02:03]} 14. bxc3 {[%clk 0:02:29]}  bxc3 {[%clk 0:02:03]} 15. Nxc3 {[%clk 0:02:29]}  O-O {[%clk 0:02:02]} 16. O-O {[%clk 0:02:25]}  a6 {[%clk 0:01:58]} 17. Rfc1 {[%clk 0:02:16]}  Re8 {[%clk 0:01:55]} 18. Qd5 {[%clk 0:02:05]}  Bd6 {[%clk 0:01:46]} 19. Qxh5 {[%clk 0:02:03]}  Nb6 {[%clk 0:01:42]} 20. a5 {[%clk 0:01:55]}  Nd7 {[%clk 0:01:37]} 21. Nde4 {[%clk 0:01:47]}  Bf8 {[%clk 0:01:27]} 22. Qd5 {[%clk 0:01:37]}  Qe7 {[%clk 0:01:10]} 23. Ng3 {[%clk 0:01:29]}  Rab8 {[%clk 0:01:00]} 24. Qc6 {[%clk 0:01:22]}  Rb2 {[%clk 0:00:39]} 25. Nd5 {[%clk 0:01:14]}  Qe6 {[%clk 0:00:25]} 26. Nxc7 {[%clk 0:01:14]}  Qxc6 {[%clk 0:00:17]} 27. Rxc6 {[%clk 0:01:15]}  Rc8 {[%clk 0:00:15]} 28. Rac1 {[%clk 0:01:13]}  Rb7 {[%clk 0:00:14]} 29. Nxa6 {[%clk 0:01:10]}  Rxc6 {[%clk 0:00:14]} 30. Rxc6 {[%clk 0:01:11]}  Rb1+ {[%clk 0:00:13]} 31. Kh2 {[%clk 0:01:11]}  Ra1 {[%clk 0:00:14]} 32. Ne4 {[%clk 0:00:32]}  f5 {[%clk 0:00:13]} 33. Nec5 {[%clk 0:00:25]}  Nf6 {[%clk 0:00:12]} 34. Nb7 {[%clk 0:00:20]}  Ng4+ {[%clk 0:00:10]} 35. Kg3 {[%clk 0:00:20]}  Ra2 {[%clk 0:00:10]} 36. Nac5 {[%clk 0:00:15]}  Rxf2 {[%clk 0:00:09]} 37. Rc8 {[%clk 0:00:15]}  Rb2 {[%clk 0:00:06]} 38. a6 {[%clk 0:00:13]}  g6 {[%clk 0:00:04]} 39. Nd7 {[%clk 0:00:13]} 1-0


[Site "https://www.chess.com"]